bitfinex-derivatives/quotes_ETHF0:USTF0_20250210
["timestamp","ask_amount","ask_price","bid_price","bid_amount"]
[1739159251081,3.2078,2630.4,2629.0,46.4881103]
[1739159251279,0.19471807,2630.5,2629.9,3.2078]
[1739159251879,3.2078,2630.7,2629.9,3.2078]
[1739159252281,0.00570245,2630.6,2630.0,0.00570245]
[1739159252586,4.25449192,2630.6,2630.0,0.00570245]
[1739159253182,0.00570245,2630.6,2630.0,0.00570245]
[1739159254279,0.00570245,2630.6,2630.3,3.2078]
[1739159254883,0.00570245,2630.6,2630.0,0.00570245]
[1739159255089,0.00570245,2630.6,2630.2,3.2078]
[1739159255689,0.00570245,2630.6,2630.5,3.2078]
[1739159256085,0.00570245,2630.6,2630.1,3.2078]
[1739159256383,4.1251387,2630.6,2630.0,0.00570245]
[1739159256778,0.00570245,2630.6,2630.1,3.2078]
[1739159257686,0.00570245,2630.6,2630.5,3.2078]
[1739159258790,3.39613325,2631.5,2630.5,9.2078]
[1739159258992,3.2078,2631.5,2630.8,3.2078]
[1739159259183,5.41603396,2632.1,2630.9,3.2078]
[1739159259488,4.31582296,2631.6,2630.9,3.2078]
[1739159259795,0.00570245,2631.5,2631.2,3.2078]
[1739159259979,0.00570245,2631.5,2631.2,3.96778]
[1739159260185,0.00570245,2631.5,2631.3,0.75994]
[1739159260380,2.819,2632.4,2631.2,5.42050688]
[1739159260587,3.2078,2632.5,2631.7,3.2078]
[1739159260888,2.185,2632.8,2631.2,2.21270688]
[1739159260889,2.185,2632.8,2632.0,3.2078]
[1739159261085,3.2078,2632.9,2632.0,3.2078]
[1739159261290,3.2078,2632.9,2632.3,3.2078]
[1739159261683,3.21350245,2632.9,2632.3,3.2078]
[1739159262386,3.21350245,2632.9,2631.8,3.2078]
[1739159262588,4.39889441,2632.8,2631.8,3.2078]
[1739159262988,3.2078,2632.6,2631.7,0.6615]
[1739159263390,3.2078,2632.3,2631.2,0.00447292]
[1739159263787,4.01639873,2632.2,2631.2,0.00447292]
[1739159264482,4.01639873,2632.2,2631.3,3.2078]
[1739159264884,3.2078,2632.0,2631.2,0.00447292]
[1739159265085,3.2078,2631.4,2631.2,0.00447292]
[1739159265692,0.00570245,2631.6,2631.2,0.00447292]
[1739159267092,0.00570245,2631.6,2631.3,3.2078]
[1739159267289,0.00570245,2631.6,2631.3,3.8918]
[1739159268287,3.2078,2632.6,2631.3,3.8918]
[1739159268500,3.2078,2632.6,2631.4,3.2078]
[1739159268692,0.19382437,2632.4,2631.4,3.2078]
[1739159269093,4.16108725,2632.5,2631.8,3.2078]
[1739159269590,0.00570245,2632.4,2631.5,40.8]
[1739159269791,0.00570245,2632.4,2631.6,3.2078]
[1739159269991,0.00570245,2632.4,2632.1,3.2078]
[1739159270192,0.00570245,2632.4,2631.7,3.2078]
[1739159270598,0.00570245,2632.4,2631.8,3.2078]
[1739159270793,0.00570245,2632.4,2632.0,3.2078]
[1739159270997,0.00570245,2632.4,2631.5,40.8]
[1739159271197,7.3488161,2632.3,2631.3,0.684]
[1739159271501,3.2078,2632.0,2631.3,0.684]
[1739159272001,3.2078,2631.7,2631.3,0.684]
[1739159272396,3.2078,2631.9,2631.2,0.00447292]
[1739159272896,3.2078,2631.9,2631.2,3.21227292]
[1739159273103,6.0006,2632.2,2631.6,3.2078]
[1739159273601,6.0006,2632.2,2631.2,3.21227292]
[1739159274304,6.0006,2632.2,2631.2,0.00447292]
[1739159274305,3.2078,2631.8,2631.2,0.00447292]
[1739159275000,2.7928,2632.2,2631.2,0.00447292]
[1739159275001,3.2078,2631.5,2631.2,0.00447292]
[1739159275704,4.35217509,2631.4,2631.2,0.00447292]
[1739159276294,4.99057509,2631.4,2631.2,0.00447292]
[1739159277100,3.2078,2631.5,2631.2,0.00447292]
[1739159277402,3.2078,2631.8,2631.2,0.00447292]
[1739159277803,4.12971712,2631.9,2631.2,0.00447292]
[1739159278006,0.6384,2632.3,2631.3,0.75995]
[1739159278204,3.2078,2632.3,2631.4,44.0078]
[1739159278608,3.2078,2632.3,2631.5,0.7599]
[1739159278809,3.2078,2632.3,2631.9,3.2078]
[1739159279407,3.2078,2632.3,2631.5,3.2078]
[1739159279805,3.2078,2632.3,2631.6,0.6889]
[1739159280011,3.2078,2632.3,2631.7,0.6651]
[1739159280209,0.00570245,2632.4,2631.7,0.6651]
[1739159280413,0.00570245,2632.4,2632.1,3.2078]
[1739159280911,0.00570245,2632.4,2631.8,3.2078]
[1739159281217,0.00570245,2632.4,2631.7,0.6651]
[1739159281402,0.00570245,2632.4,2632.2,3.2078]
[1739159281814,0.00570245,2632.4,2632.3,0.6889]
[1739159282607,0.00570245,2632.4,2632.3,3.8967]
[1739159282806,3.2078,2633.1,2632.3,9.8967]
[1739159283007,3.2078,2633.1,2632.6,3.2078]
[1739159283215,4.04855179,2633.4,2632.9,3.2078]
[1739159283409,4.04855179,2633.4,2632.3,0.6889]
[1739159283410,4.04855179,2633.4,2632.4,3.2078]
[1739159283611,4.04855179,2633.4,2632.5,0.6804]
[1739159283809,3.2078,2633.4,2632.9,3.2078]
[1739159284008,0.00570245,2633.2,2632.8,3.2078]
[1739159284206,0.00570245,2633.2,2632.7,0.00570245]
[1739159284407,4.09417189,2633.1,2632.7,0.00570245]
[1739159285111,0.00570245,2633.2,2632.7,0.00570245]
[1739159287112,3.2078,2632.9,2632.7,0.00570245]
[1739159287315,0.6353,2632.8,2632.7,0.00570245]
[1739159287614,4.80848649,2632.8,2632.1,3.2078]
[1739159287813,3.2078,2632.6,2632.1,3.2078]
[1739159288421,3.2078,2632.3,2631.8,0.6546]
[1739159288615,6.52622858,2632.5,2632.1,0.00570245]
[1739159288915,8.18729462,2632.2,2631.3,0.6396]
[1739159289115,3.2078,2631.7,2631.2,3.21227292]
[1739159289514,7.46622299,2632.1,2631.2,3.21227292]
[1739159289515,3.2078,2632.0,2631.2,0.00447292]
[1739159290015,3.2078,2632.0,2631.3,0.00570245]
[1739159290016,0.00570245,2631.9,2631.3,0.00570245]
[1739159290210,3.2078,2631.4,2631.3,0.00570245]
[1739159290612,3.2078,2631.8,2631.3,0.00570245]
[1739159291019,7.31431769,2631.8,2631.3,0.00570245]
[1739159291210,3.2078,2631.5,2631.3,0.00570245]
[1739159291617,4.78861769,2631.4,2631.3,0.00570245]
[1739159292622,3.2078,2631.5,2631.3,0.00570245]
[1739159294419,4.22290198,2631.4,2630.4,3.2078]
[1739159294619,3.2078,2630.8,2629.9,0.6349]
[1739159294927,3.2078,2630.5,2629.9,0.6349]
[1739159295321,3.51131526,2630.4,2629.9,0.6349]
[1739159295517,3.2078,2630.2,2629.2,3.2078]
[1739159295726,3.2078,2630.2,2629.9,0.00570245]
[1739159296717,4.22974132,2630.1,2629.9,0.00570245]
[1739159297223,0.06337987,2630.0,2628.7,3.2078]
[1739159297420,3.2078,2629.3,2628.7,3.2078]
[1739159297825,4.33058738,2629.2,2628.7,3.2078]
[1739159298229,4.33058738,2629.2,2628.7,0.00570245]
[1739159298427,3.2078,2629.0,2628.7,0.00570245]
[1739159298824,2.20823396,2628.8,2627.9,3.2078]
[1739159299021,3.2078,2628.6,2627.6,3.2078]
[1739159299225,3.2078,2628.3,2627.6,3.2078]
[1739159299623,5.3688,2629.0,2628.2,3.2078]
[1739159299826,3.2078,2628.7,2627.7,5.04989873]
[1739159300024,3.2078,2628.1,2627.6,3.2078]
[1739159300228,7.38749491,2628.6,2627.9,3.2078]
[1739159300531,7.38749491,2628.9,2627.8,3.2078]
[1739159300734,4.17969491,2628.5,2627.5,3.2078]
[1739159301028,3.2078,2628.3,2627.5,3.2078]
[1739159302432,3.2078,2628.6,2627.8,3.2078]
[1739159302631,3.2078,2628.6,2627.5,3.2078]
[1739159302828,3.2078,2628.2,2627.5,3.2078]
[1739159303034,3.2078,2628.2,2627.1,0.6381]
[1739159303035,3.2078,2627.8,2627.1,0.6381]
[1739159303533,3.2078,2627.4,2627.1,0.6381]
[1739159303828,0.00570245,2627.7,2627.1,0.6381]
[1739159304025,0.00570245,2627.7,2627.3,3.2078]
[1739159305921,0.00570245,2627.7,2627.6,3.2078]
[1739159306128,0.00570245,2627.7,2627.3,3.2078]
[1739159306534,0.00570245,2627.7,2627.6,40.8]
[1739159308230,0.00570245,2627.7,2627.6,44.0078]
[1739159310627,3.2078,2628.7,2627.6,50.0078]
[1739159310836,3.2078,2629.0,2628.3,3.2078]
[1739159311127,3.2078,2629.0,2628.6,3.2078]
[1739159311329,4.04538226,2629.2,2628.9,3.2078]
[1739159311531,3.2078,2629.6,2628.9,3.2078]
[1739159311740,2.153,2629.8,2629.2,3.2078]
[1739159312030,0.00570245,2629.3,2629.2,3.2078]
[1739159312231,0.00570245,2629.3,2628.9,3.2078]
[1739159312431,0.00570245,2629.3,2628.8,0.00570245]
[1739159313230,0.00570245,2629.3,2628.9,3.2078]
[1739159313730,0.00570245,2629.3,2629.2,3.2078]
[1739159314236,3.2078,2630.1,2629.2,9.2078]
[1739159314429,3.2078,2630.1,2629.6,3.2078]
[1739159314837,5.55663208,2630.5,2629.6,3.2078]
[1739159315232,3.2078,2630.2,2629.0,3.2078]
[1739159315434,3.2078,2630.2,2629.3,3.2078]
[1739159315637,3.2078,2630.2,2629.0,0.6675]
[1739159315638,4.11776592,2630.1,2629.0,3.2078]
[1739159315833,4.11776592,2630.1,2628.8,0.00570245]
[1739159315834,3.2078,2629.6,2628.8,0.00570245]
[1739159316029,2.84053396,2630.0,2628.8,0.00570245]
[1739159316030,3.2078,2629.3,2628.8,0.00570245]
[1739159316340,4.13215318,2629.5,2628.9,3.2078]
[1739159316529,4.13215318,2629.2,2628.8,0.00570245]
[1739159316838,7.33995318,2629.6,2628.8,0.00570245]
[1739159317038,3.99910368,2629.5,2628.8,0.00570245]
[1739159317441,3.2078,2629.2,2628.8,0.00570245]
[1739159317833,3.99910368,2629.1,2628.8,0.00570245]
[1739159318932,3.2078,2628.9,2628.8,0.00570245]
[1739159319138,3.2078,2628.9,2628.0,3.2078]
[1739159319341,3.2078,2628.8,2628.0,3.2078]
[1739159319637,2.157,2629.0,2628.0,3.2078]
[1739159319837,3.97237326,2628.7,2628.4,3.2078]
[1739159320030,3.97237326,2628.8,2628.4,3.2078]
[1739159320338,3.2078,2629.2,2627.9,2.20823396]
[1739159320538,0.00570245,2628.9,2628.3,0.00570245]
[1739159320729,0.00570245,2628.9,2628.8,3.2078]
[1739159321237,3.2078,2629.8,2628.8,9.2078]
[1739159321444,2.154,2630.1,2629.6,3.2078]
[1739159321734,2.154,2630.1,2628.9,0.6252]
[1739159321735,4.4137028,2630.0,2629.2,3.2078]
[1739159322641,0.00570245,2629.9,2629.5,3.2078]
[1739159323241,0.00570245,2629.9,2629.8,3.2078]
[1739159324141,0.19268958,2630.7,2629.8,3.2078]
[1739159324640,3.2078,2630.5,2629.4,2.144]
[1739159324945,4.40141851,2630.4,2629.4,2.144]
[1739159325336,4.40141851,2630.4,2629.5,3.2078]
[1739159325542,0.00570245,2630.2,2629.6,0.00570245]
[1739159325735,0.00570245,2630.2,2629.8,3.2078]
[1739159325937,0.00570245,2630.2,2629.6,0.00570245]
[1739159326547,4.17475502,2630.1,2629.6,0.00570245]
[1739159327545,4.17475502,2630.1,2629.6,3.21350245]
[1739159328238,3.2078,2629.9,2629.6,0.00570245]
[1739159328844,4.74754871,2629.8,2629.6,0.00570245]
[1739159329242,10.74754871,2629.8,2629.6,0.00570245]
[1739159329440,4.74754871,2629.8,2629.6,0.00570245]
[1739159330441,0.19466784,2629.7,2629.6,0.00570245]
[1739159330748,4.18324847,2629.7,2629.6,0.00570245]
[1739159330943,3.98858063,2629.7,2629.6,3.21350245]
[1739159331150,3.21350245,2630.2,2629.6,3.21350245]
[1739159331448,0.00570245,2630.2,2630.1,3.2078]
[1739159331642,0.00570245,2630.2,2629.9,3.2078]
[1739159332444,0.00570245,2630.2,2630.0,0.6478]
[1739159335345,0.18721134,2631.4,2630.1,4.96087613]
[1739159335541,3.2078,2631.6,2630.8,3.2078]
[1739159335750,3.97020407,2631.3,2630.8,3.2078]
[1739159335943,3.97020407,2631.5,2630.8,3.2078]
[1739159336148,3.2078,2631.6,2630.8,3.2078]
[1739159336449,4.10901814,2631.5,2630.9,0.00570245]
[1739159337145,3.2078,2631.3,2630.9,0.00570245]
[1739159337344,4.30039068,2631.5,2630.9,0.00570245]
[1739159337545,0.19707499,2631.5,2630.9,0.00570245]
[1739159337747,4.28107105,2631.4,2630.9,0.00570245]
[1739159338248,3.2078,2631.2,2630.9,0.00570245]
[1739159338644,4.1915139,2631.1,2630.9,0.00570245]
[1739159338850,0.00570245,2631.5,2631.0,3.2078]
[1739159339147,4.24465716,2631.4,2631.0,3.2078]
[1739159339654,4.24465716,2631.4,2631.3,3.2078]
[1739159339955,4.24465716,2631.4,2630.9,0.00570245]
[1739159341250,3.13904716,2631.4,2631.3,0.75996]
[1739159341459,0.00570245,2631.5,2631.1,5.41603396]
[1739159341644,0.6767,2632.7,2631.5,2.20823396]
[1739159341956,0.6767,2632.7,2631.9,5.41603396]
[1739159341957,4.38759916,2632.6,2631.9,5.41603396]
[1739159342155,3.2078,2632.5,2631.6,3.2078]
[1739159342450,3.2078,2632.1,2631.5,2.20823396]
[1739159342656,0.75969,2632.3,2631.5,2.20823396]
[1739159342859,0.00570245,2632.1,2631.3,3.2078]
[1739159343159,3.2078,2631.6,2631.2,0.6711]
[1739159343353,0.83036402,2632.0,2631.2,3.8789]
[1739159343754,4.05712828,2631.9,2631.2,3.8789]
[1739159344150,0.00570245,2632.1,2631.6,3.2078]
[1739159344352,3.21350245,2632.1,2631.2,3.8789]
[1739159344549,4.23512669,2631.9,2631.2,0.6711]
[1739159344752,4.23512669,2632.0,2631.2,0.6711]
[1739159344753,4.99489669,2632.0,2631.2,0.6711]
[1739159344954,3.2078,2632.0,2631.2,0.6711]
[1739159345257,4.83523015,2631.9,2631.2,0.6711]
[1739159345453,4.07543015,2631.9,2631.2,0.6711]
[1739159345646,0.00570245,2632.1,2631.5,3.2078]
[1739159345852,0.00570245,2632.1,2631.8,3.2078]
[1739159346053,3.2078,2632.7,2632.0,2.20823396]
[1739159346250,3.2078,2633.0,2632.4,3.2078]
[1739159346456,3.2078,2633.0,2632.4,5.41603396]
[1739159346662,4.1632066,2632.9,2632.1,0.6583]
[1739159347157,3.2078,2632.4,2631.6,2.20823396]
[1739159347361,3.2078,2632.4,2632.2,0.00570245]
[1739159347556,4.04230394,2632.3,2632.2,0.00570245]
[1739159348148,3.2078,2632.4,2632.2,0.00570245]
[1739159348359,0.7598,2631.9,2630.9,3.2078]
[1739159348553,3.2078,2631.7,2630.9,3.2078]
[1739159349062,3.99631829,2631.6,2630.9,3.2078]
[1739159349263,3.2078,2631.4,2630.9,3.2078]
[1739159349664,3.2078,2631.4,2631.0,0.00570245]
[1739159349862,4.1074269,2631.3,2631.0,0.00570245]
[1739159350466,3.21350245,2631.4,2631.0,0.00570245]
[1739159350971,4.27504769,2631.3,2631.0,0.00570245]
[1739159351365,3.2078,2631.1,2631.0,0.00570245]
[1739159351569,3.27114194,2631.1,2630.1,3.2078]
[1739159351864,3.2078,2630.7,2630.1,3.2078]
[1739159352371,4.0841254,2630.6,2630.1,3.2078]
[1739159352563,4.0841254,2630.6,2629.8,1.3447]
[1739159352767,4.0841254,2630.6,2630.1,0.00570245]
[1739159353263,3.2078,2630.4,2630.1,0.00570245]
[1739159354065,3.95742844,2630.3,2630.1,0.00570245]
[1739159354371,0.06336292,2630.2,2629.3,3.2078]
[1739159354559,3.2078,2629.8,2629.3,3.2078]
[1739159354868,2.117,2629.9,2629.3,3.2078]
[1739159355372,4.39257479,2629.7,2629.3,3.2078]
[1739159355668,3.2078,2629.5,2629.3,0.00570245]
[1739159355971,3.5603677,2629.4,2629.3,0.00570245]
[1739159356375,0.00570245,2629.9,2629.3,0.00570245]
[1739159356877,0.00570245,2629.9,2629.5,3.2078]
[1739159357065,0.00570245,2629.9,2629.6,1.327]
[1739159357268,0.00570245,2629.9,2629.3,0.00570245]
[1739159357469,4.29925343,2629.8,2629.3,0.00570245]
[1739159357668,6.41825343,2629.8,2629.3,0.00570245]
[1739159357960,4.29925343,2629.8,2629.3,0.00570245]
[1739159358162,0.00570245,2629.9,2629.5,3.2078]
[1739159359272,0.00570245,2629.9,2629.6,0.6601]
[1739159359960,0.00570245,2629.9,2629.6,2.86833396]
[1739159360163,3.2078,2631.2,2629.8,3.2078]
[1739159360367,3.2078,2631.2,2630.2,3.2078]
[1739159360563,4.37207735,2631.0,2630.5,3.2078]
[1739159360763,3.2078,2631.6,2630.9,3.2078]
[1739159360962,0.06332752,2631.5,2630.5,5.41603396]
[1739159361168,4.43540836,2631.4,2630.5,3.2078]
[1739159361368,3.27683538,2631.3,2630.7,0.00570245]
[1739159361673,7.26545425,2631.3,2630.7,0.00570245]
[1739159362270,3.2078,2631.0,2630.7,0.00570245]
[1739159362476,2.12,2630.9,2630.7,0.00570245]
[1739159362675,6.48312585,2630.9,2630.7,0.00570245]
[1739159362974,1.3526486,2630.8,2629.5,0.6555]
[1739159363176,3.2078,2630.1,2629.3,3.2078]
[1739159363468,3.2078,2630.6,2630.0,3.2078]
[1739159363972,4.28099448,2630.5,2629.8,1.3205]
[1739159364272,6.41699448,2630.5,2630.0,0.00570245]
[1739159365068,3.2078,2630.2,2630.0,0.00570245]
[1739159365577,4.17040026,2630.1,2630.0,0.00570245]
[1739159366775,2.13470245,2630.6,2630.0,0.00570245]
[1739159367076,4.06724919,2630.4,2630.0,0.00570245]
[1739159367468,0.00570245,2630.6,2630.0,0.00570245]
[1739159367878,0.00570245,2630.6,2630.3,3.2078]
[1739159369066,0.6369,2631.6,2630.5,2.20823396]
[1739159369278,5.52572129,2631.8,2630.5,5.41603396]
[1739159369575,4.24899638,2631.5,2630.8,3.2078]
[1739159369778,4.24899638,2631.7,2630.8,3.2078]
[1739159369968,4.24899638,2631.6,2630.8,3.2078]
[1739159370281,5.3358,2631.8,2630.8,3.2078]
[1739159370577,0.00570245,2631.5,2630.8,3.2078]
[1739159370965,4.01103314,2631.4,2630.8,3.2078]
[1739159371168,3.21350245,2631.5,2630.8,3.2078]
[1739159371383,3.21350245,2631.5,2630.6,0.6529]
[1739159371677,4.23693449,2631.4,2630.6,0.6529]
[1739159371880,3.21350245,2631.5,2630.8,3.2078]
[1739159373174,3.21350245,2631.5,2630.9,2.20823396]
[1739159373480,3.2078,2631.2,2630.8,3.2078]
[1739159373866,0.00570245,2631.5,2630.8,3.2078]
[1739159374270,3.2078,2631.3,2630.8,3.2078]
[1739159374969,3.97192265,2631.2,2630.8,3.2078]
[1739159375170,0.00570245,2631.5,2630.8,3.2078]
[1739159375572,4.04699458,2631.4,2630.8,3.2078]
[1739159375780,0.00570245,2631.5,2630.8,3.2078]
[1739159376276,0.00570245,2631.5,2631.3,2.20823396]
[1739159376471,0.00570245,2631.5,2631.4,0.6381]
[1739159376673,3.2078,2632.0,2631.4,0.6381]
[1739159376873,3.2078,2632.0,2631.5,3.2078]
[1739159377774,2.111,2632.5,2631.8,3.2078]
[1739159377775,3.2078,2632.5,2631.8,3.2078]
[1739159377971,0.00570245,2632.0,2631.8,3.2078]
[1739159378177,3.2078,2632.8,2631.9,3.2078]
[1739159378476,0.06329626,2632.7,2631.7,2.20823396]
[1739159378671,0.06329626,2632.7,2631.9,3.2078]
[1739159378871,7.54761181,2632.8,2631.9,3.2078]
[1739159379481,0.00368326,2632.6,2631.9,3.2078]
[1739159379884,0.00368326,2632.6,2632.3,3.2078]
[1739159380070,0.00368326,2632.6,2632.4,0.6284]
[1739159381483,0.00368326,2632.6,2632.5,0.6554]
[1739159381881,0.6182,2633.6,2632.5,2.86363396]
[1739159382182,0.19473063,2633.4,2632.7,3.2078]
[1739159382380,4.10015839,2633.5,2632.7,3.2078]
[1739159383279,4.10015839,2633.5,2632.8,0.00570245]
[1739159383477,2.093,2633.9,2633.0,3.2078]
[1739159383980,4.03823133,2633.7,2633.0,3.2078]
[1739159384185,4.03823133,2633.8,2633.0,3.2078]
[1739159384482,7.43708394,2633.6,2632.8,0.00570245]
[1739159384679,0.75936,2633.4,2632.8,0.00570245]
[1739159384889,0.75943,2633.2,2632.8,0.00570245]
[1739159385181,4.09612585,2633.1,2632.8,0.00570245]
[1739159385372,3.2078,2633.0,2632.8,0.00570245]
[1739159385985,4.09612585,2632.9,2632.8,0.00570245]
[1739159387172,0.19211623,2633.1,2632.8,0.00570245]
[1739159387377,4.16200866,2632.9,2632.8,0.00570245]
[1739159387783,3.2078,2633.0,2632.8,0.00570245]
[1739159388185,4.16200866,2632.9,2632.8,0.00570245]
[1739159388690,2.09,2633.2,2632.8,0.00570245]
[1739159388987,4.10468011,2633.1,2632.8,0.00570245]
[1739159389287,0.18653058,2633.2,2632.8,0.00570245]
[1739159389482,1.26,2633.5,2632.8,0.00570245]
[1739159389785,4.29196813,2633.4,2632.8,0.00570245]
[1739159389982,4.29196813,2633.4,2632.8,3.21350245]
[1739159390185,4.29196813,2633.5,2632.8,0.00570245]
[1739159390481,4.29196813,2633.6,2632.8,0.00570245]
[1739159390482,3.2078,2633.1,2632.8,0.00570245]
[1739159390985,4.3452021,2633.0,2632.8,0.00570245]
[1739159391887,3.2078,2633.1,2632.8,0.00570245]
[1739159392089,4.01527456,2633.0,2632.8,0.00570245]
[1739159392883,10.01527456,2633.0,2631.5,3.2078]
[1739159393092,3.2078,2632.4,2631.2,3.2078]
[1739159393291,2.089,2632.3,2631.1,0.6214]
[1739159393484,6.25290675,2632.3,2631.2,3.2078]
[1739159393686,6.25290675,2632.3,2631.5,3.2078]
[1739159393884,6.25290675,2632.3,2631.6,0.602]
[1739159394186,0.00570245,2632.2,2631.6,0.60770245]
[1739159394585,4.12832089,2632.1,2631.6,0.60770245]
[1739159395192,0.00570245,2632.2,2631.6,0.60770245]
[1739159395789,7.45825757,2632.1,2631.6,0.00570245]
[1739159398492,3.2078,2631.8,2631.6,0.00570245]
[1739159398887,4.23117323,2631.7,2631.6,0.00570245]
[1739159399987,4.99102323,2631.7,2631.6,0.00570245]
[1739159400187,5.05434748,2631.7,2630.6,4.5214]
[1739159400385,3.2078,2631.5,2630.6,4.5214]
[1739159400791,4.00736103,2631.4,2630.6,4.5214]
[1739159401394,4.00736103,2631.4,2630.7,0.00570245]
[1739159401588,3.2078,2631.5,2630.9,3.2078]
[1739159401787,3.2078,2631.5,2630.7,0.00570245]
[1739159402490,4.23400732,2631.4,2630.7,0.00570245]
[1739159402902,0.19158231,2631.3,2630.7,0.00570245]
[1739159403690,0.19158231,2631.3,2630.7,1.98923428]
[1739159404093,4.23400732,2631.4,2630.9,3.2078]
[1739159404801,3.2078,2631.5,2631.0,1.98353183]
[1739159405486,3.8184,2632.0,2631.3,3.2078]
[1739159405892,4.2170197,2631.9,2631.3,5.19133183]
[1739159406097,3.2078,2632.0,2631.4,0.6389]
[1739159406298,3.2078,2632.0,2631.6,3.2078]
[1739159406489,0.00570245,2632.2,2631.6,3.2078]
[1739159406696,0.00570245,2632.2,2631.6,5.19133183]
[1739159406893,0.00570245,2632.2,2632.0,3.2078]
[1739159407092,0.00570245,2632.2,2632.0,5.19133183]
[1739159407294,0.6543,2632.9,2632.3,1.98353183]
[1739159407490,3.2078,2632.4,2631.5,0.6628]
[1739159407701,7.56394193,2632.1,2631.4,2.62243183]
[1739159407995,2.09,2632.3,2631.4,2.62243183]
[1739159407996,6.44614193,2632.3,2631.6,3.2078]
[1739159408191,2.09,2632.3,2631.7,2.64633183]
[1739159408395,0.00570245,2632.2,2632.0,1.98353183]
[1739159409598,0.00570245,2632.2,2631.9,3.2078]
[1739159409794,0.00570245,2632.2,2631.7,0.66850245]
[1739159410002,0.00570245,2632.2,2631.9,3.2078]
[1739159410497,0.00570245,2632.2,2632.0,2.20499296]
[1739159410795,2.089,2633.3,2632.0,2.20499296]
[1739159410998,3.2078,2633.5,2632.9,3.2078]
[1739159411196,4.25856431,2633.3,2632.6,3.2078]
[1739159411396,3.2078,2633.5,2632.5,41.4638]
[1739159411397,4.3896775,2633.4,2632.5,41.4638]
[1739159411699,0.6474,2633.4,2632.5,41.4638]
[1739159411901,5.0370775,2633.4,2632.5,41.4638]
[1739159412095,5.0370775,2633.4,2632.5,0.6638]
[1739159412306,5.0370775,2633.4,2632.0,5.41279296]
[1739159412307,3.2078,2633.2,2632.0,5.41279296]
[1739159412593,0.06328904,2633.1,2632.0,5.41279296]
[1739159412804,0.06328904,2633.1,2632.3,3.2078]
[1739159412805,4.53676507,2633.1,2632.3,3.2078]
[1739159413199,4.53676507,2633.1,2632.0,5.41279296]
[1739159413591,4.53676507,2633.1,2632.3,3.2078]
[1739159414094,4.53676507,2633.1,2632.4,0.6432]
[1739159414597,4.53676507,2633.1,2632.7,3.2078]
[1739159414803,2.089,2633.5,2632.7,3.2078]
[1739159415198,3.2078,2633.6,2632.7,3.2078]
[1739159415199,4.01766248,2633.4,2632.7,3.2078]
[1739159415498,3.2078,2633.6,2632.7,3.2078]
[1739159415700,4.02137932,2633.5,2632.7,3.2078]
[1739159415897,3.2078,2633.6,2633.0,3.2078]
[1739159416297,3.2078,2633.6,2633.0,0.00570245]
[1739159416601,3.2078,2633.6,2633.0,3.21350245]
[1739159416899,4.31881834,2633.5,2633.0,0.00570245]
[1739159417702,3.2078,2633.6,2633.0,3.21350245]
[1739159419710,0.18607814,2633.8,2633.3,3.2078]
[1739159419908,0.18607814,2633.8,2633.0,3.21350245]
[1739159420201,4.40229532,2633.7,2633.1,0.621]
[1739159420802,8.36938532,2633.7,2633.0,0.00570245]
[1739159420997,3.2078,2633.4,2633.0,0.00570245]
[1739159421397,0.75961,2632.6,2632.0,3.2078]
[1739159421602,3.2078,2632.6,2632.0,3.2078]
[1739159421807,3.2078,2632.3,2631.3,1.82001874]
[1739159422100,3.2078,2632.0,2631.3,1.2574]
[1739159422300,4.30062501,2632.2,2631.5,3.2078]
[1739159422499,0.19398164,2632.1,2631.5,3.2078]
[1739159422692,0.19968409,2632.1,2631.6,0.00570245]
[1739159423506,0.00570245,2632.1,2631.6,2.21069541]
[1739159424099,0.00570245,2632.1,2631.6,0.00570245]
[1739159424308,4.15854572,2632.0,2631.6,0.00570245]
[1739159425000,0.00570245,2632.1,2631.6,0.00570245]
[1739159426704,0.00570245,2632.1,2631.7,3.2078]
[1739159427696,0.00570245,2632.1,2632.0,3.2078]
[1739159428098,2.088,2633.0,2632.0,5.41279296]
[1739159428405,4.09722433,2632.9,2632.0,5.41279296]
[1739159428606,4.09722433,2632.9,2632.1,0.6683]
[1739159428798,4.09722433,2632.9,2632.1,41.4683]
[1739159429203,4.09722433,2632.9,2632.1,0.6683]
[1739159429599,4.09722433,2632.9,2632.5,3.2078]
[1739159429804,3.2078,2633.0,2632.1,41.4683]
[1739159429805,3.2078,2633.0,2632.2,3.2078]
[1739159430104,4.08361848,2632.9,2632.2,3.2078]
[1739159430503,3.2078,2633.3,2632.7,3.2078]
[1739159430799,3.2078,2633.6,2633.0,3.2078]
[1739159431203,7.22020782,2633.6,2633.0,3.21350245]
[1739159432305,0.18607814,2633.8,2633.0,5.19407565]
[1739159432704,4.40126636,2633.7,2633.0,5.19407565]
[1739159433100,0.18607814,2633.8,2633.4,3.2078]
[1739159433706,4.16823619,2633.7,2633.4,3.2078]
[1739159434106,0.18607814,2633.8,2633.4,3.2078]
[1739159434502,4.15691683,2633.7,2633.0,0.00570245]
[1739159435005,3.8659,2633.6,2633.0,0.00570245]
[1739159435312,4.39465333,2633.5,2633.0,0.00570245]
[1739159436309,2.088,2633.4,2633.0,0.00570245]
[1739159437711,0.6581,2633.6,2633.0,0.00570245]
[1739159438906,4.17482363,2633.5,2633.0,0.00570245]
[1739159439209,3.9672,2633.3,2633.0,0.00570245]
[1739159439411,0.06328517,2633.2,2632.1,1.9805732]
[1739159439611,2.087,2633.1,2632.1,1.9805732]
[1739159439910,4.10902856,2633.0,2632.2,3.2078]
[1739159440407,4.10902856,2633.0,2632.5,3.2078]
[1739159440708,3.8659,2633.6,2632.9,3.2078]
[1739159441005,3.8659,2633.6,2633.0,1.9805732]
[1739159441212,0.00570245,2633.5,2633.0,2.6250732]
[1739159443012,0.00570245,2633.5,2633.0,0.6445]
[1739159443410,0.00570245,2633.5,2633.2,3.2078]
[1739159444507,0.00570245,2633.5,2633.0,2.6250732]
[1739159445815,0.00570245,2633.5,2633.0,0.6445]
[1739159447012,4.09406663,2633.4,2632.6,3.8746]
[1739159447316,4.09406663,2633.4,2633.0,5.1883732]
[1739159447512,0.00570245,2633.5,2633.0,5.1883732]
[1739159447713,0.00570245,2633.5,2633.0,3.2078]
[1739159447913,4.00700839,2633.4,2632.7,5.1883732]
[1739159448512,4.00700839,2633.4,2632.6,0.6668]
[1739159448708,0.06327959,2633.3,2632.6,0.6668]